fUSD/lending_fUSD_20240205
["ID","MTS","AMOUNT","RATE_DAILY","PERIOD"]
[313308413,1707129052197,-500.0,0.00044381,7]
[313308414,1707129052207,-500.0,0.00044381,7]
[313308415,1707129052217,-636.98,0.00044381,7]
[313308416,1707129052227,-500.0,0.00044381,7]
[313308417,1707129052236,-1606.35,0.00044381,5]
[313308418,1707129052246,-500.0,0.00044381,7]
[313308419,1707129052256,-500.0,0.00044381,7]
[313308420,1707129052266,-500.0,0.00044381,7]
[313308421,1707129052275,-545.19,0.00044381,7]
[313308422,1707129052285,-500.0,0.00044381,7]
[313308423,1707129052295,-636.95,0.00044381,7]
[313308424,1707129052305,-500.0,0.00044381,7]
[313308425,1707129052315,-500.0,0.00044381,7]
[313308426,1707129052326,-500.0,0.00044381,7]
[313308427,1707129052335,-500.0,0.00044381,7]
[313308428,1707129052346,-500.0,0.00044381,7]
[313308429,1707129052355,-500.0,0.00044382,7]
[313308430,1707129052365,-266.88257573,0.00044382,7]
[313308431,1707129052375,-500.0,0.00044382,30]
[313308432,1707129052384,-234.78128639,0.00044382,7]
[313308433,1707129052394,-500.0,0.00044382,7]
[313308434,1707129052404,-500.0,0.00044382,7]
[313308435,1707129052413,-500.0,0.00044382,20]
[313308436,1707129052423,-500.0,0.00044382,7]
[313308437,1707129052433,-500.0,0.00044382,7]
[313308438,1707129052442,-274.14891251,0.00044382,7]
[313308439,1707129052452,-500.0,0.00044382,7]
[313308440,1707129052462,-250.0,0.00044382,7]
[313308441,1707129052472,-500.0,0.00044382,7]
[313308442,1707129052482,-746.91,0.00044382,7]
[313308443,1707129052492,-500.0,0.00044382,7]
[313308444,1707129052502,-500.0,0.00044382,7]
[313308445,1707129052512,-500.0,0.00044382,7]
[313308446,1707129052521,-1155.46,0.00044382,7]
[313308447,1707129052531,-500.0,0.00044382,7]
[313308448,1707129052541,-500.0,0.00044382,7]
[313308449,1707129052551,-500.0,0.00044382,7]
[313308450,1707129052561,-817.51,0.00044382,7]
[313308451,1707129052577,-582.82,0.00044382,7]
[313308452,1707129052586,-500.0,0.00044382,7]
[313308453,1707129052595,-4497.04,0.00044382,7]
[313308454,1707129052605,-570.03,0.00044382,7]
[313308455,1707129052615,-500.0,0.00044382,7]
[313308456,1707129052624,-500.0,0.00044382,7]
[313308457,1707129052634,-578.06,0.00044382,7]
[313308458,1707129052643,-1403.82,0.00044382,7]
[313308459,1707129052654,-648.10988171,0.00044382,7]
[313308460,1707129052664,-946.4,0.00044382,7]
[313308461,1707129052674,-597.19518282,0.00044382,7]
[313308462,1707129052684,-500.0,0.00044382,7]
[313308463,1707129052694,-500.0,0.00044382,7]
[313308464,1707129052703,-500.0,0.00044382,7]
[313308465,1707129052713,-500.0,0.00044382,7]
[313308466,1707129052723,-500.0,0.00044382,7]
[313308467,1707129052732,-575.5,0.00044382,7]
[313308468,1707129052743,-500.0,0.00044382,7]
[313308469,1707129052753,-2262.95,0.00044382,7]
[313308470,1707129052763,-500.0,0.00044382,7]
[313308471,1707129052772,-500.0,0.00044382,2]
[313308472,1707129052782,-517.57,0.00044382,7]
[313308473,1707129052791,-500.0,0.00044382,2]
[313308474,1707129052800,-500.0,0.00044382,7]
[313308475,1707129052810,-500.0,0.00044382,7]
[313308476,1707129052820,-500.0,0.00044382,7]
[313308477,1707129052830,-500.0,0.00044382,7]
[313308478,1707129052839,-500.0,0.00044382,7]
[313308479,1707129052848,-500.0,0.00044382,7]
[313308480,1707129052858,-500.0,0.00044382,7]
[313308481,1707129052867,-500.0,0.00044382,7]
[313308482,1707129052877,-500.0,0.00044382,7]
[313308483,1707129052886,-556.0,0.00044383,7]
[313308484,1707129052895,-329.08003281,0.00044383,7]
[313308485,1707129052904,-500.0,0.00044383,2]
[313308486,1707129052914,-500.0,0.00044383,7]
[313308487,1707129052923,-500.0,0.00044383,7]
[313308488,1707129052932,-500.0,0.00044383,7]
[313308489,1707129052941,-500.0,0.00044383,7]
[313308490,1707129052951,-369.91958857,0.00044383,7]
[313308491,1707129052960,-500.0,0.00044383,7]
[313308492,1707129052970,-614.83953587,0.00044383,7]
[313308493,1707129052980,-500.0,0.00044383,7]
[313308494,1707129052989,-500.0,0.00044383,7]
[313308495,1707129052999,-500.0,0.00044383,7]
[313308496,1707129053009,-894.79,0.00044383,7]
[313308497,1707129053018,-500.0,0.00044383,7]
[313308498,1707129053028,-1117.35,0.00044383,7]
[313308499,1707129053038,-647.51,0.00044383,7]
[313308500,1707129053047,-899.4,0.00044383,7]
[313308501,1707129053057,-838.91,0.00044383,7]
[313308502,1707129053067,-302.73188938,0.00045,14]
[313308503,1707129053077,-1906.21641142,0.00045095,22]
[313308504,1707129053086,-318.0,0.0004519,2]
[313308505,1707129053096,-101383.842496,0.00045193,10]
[313308506,1707129053105,-293.57024622,0.00045195,12]
[313308507,1707129053115,-500.0,0.00045202,7]
[313308508,1707129053125,-500.0,0.00045202,7]
[313308509,1707129053135,-526.7,0.00045202,7]
[313308510,1707129053144,-500.0,0.00045202,7]
[313308511,1707129053154,-2064.68,0.00045202,7]
[313308512,1707129053164,-500.0,0.00045202,7]
[313308513,1707129053174,-631.03,0.00045202,7]
[313308514,1707129053183,-500.0,0.00045202,7]
[313308515,1707129053193,-500.0,0.00045202,7]
[313308516,1707129053202,-500.0,0.00045202,7]
[313308517,1707129053212,-913.46,0.00045202,7]
[313308518,1707129053222,-500.0,0.00045202,7]
[313308519,1707129053232,-691.49,0.00045202,7]
[313308520,1707129053241,-2000.16,0.00045202,7]
[313308521,1707129053251,-500.0,0.00045202,7]
[313308522,1707129053261,-500.0,0.00045202,7]
[313308523,1707129053271,-557.0,0.00045202,7]
[313308524,1707129053281,-500.0,0.00045202,7]
[313308525,1707129053290,-500.0,0.00045202,7]
[313308526,1707129053300,-927.94,0.00045202,7]
[313308527,1707129053310,-500.0,0.00045202,7]
[313308528,1707129053320,-2529.9,0.00045202,7]
[313308529,1707129053330,-500.0,0.00045202,7]
[313308530,1707129053340,-598.19,0.00045202,7]
[313308531,1707129053350,-500.0,0.00045202,7]
[313308532,1707129053359,-500.0,0.00045202,7]
[313308533,1707129053369,-500.0,0.00045202,7]
[313308534,1707129053379,-500.0,0.00045202,7]
[313308535,1707129053388,-500.0,0.00045202,7]
[313308536,1707129053398,-500.0,0.00045202,7]
[313308537,1707129053407,-669.27,0.00045202,7]
[313308538,1707129053417,-500.0,0.00045202,7]
[313308539,1707129053427,-500.0,0.00045202,7]
[313308540,1707129053436,-500.0,0.00045202,7]
[313308541,1707129053446,-1800.15,0.00045202,7]
[313308542,1707129053456,-500.0,0.00045202,7]
[313308543,1707129053466,-950.58,0.00045202,7]
[313308544,1707129053476,-616.3,0.00045202,7]
[313308545,1707129053486,-500.0,0.00045202,7]
[313308546,1707129053495,-500.0,0.00045202,7]
[313308547,1707129053505,-500.0,0.00045202,7]
[313308548,1707129053515,-500.0,0.00045202,7]
[313308549,1707129053524,-500.0,0.00045202,7]
[313308550,1707129053534,-296.32809249,0.00045202,7]
[313308551,1707129053645,-203.67190751,0.00045202,7]
[313308552,1707129053656,-1235.67,0.00045202,7]
[313308553,1707129053666,-500.0,0.00045202,7]
[313308554,1707129053675,-500.0,0.00045202,7]
[313308555,1707129053684,-500.0,0.00045202,7]
[313308556,1707129053694,-980.35,0.00045202,7]
[313308557,1707129053703,-500.0,0.00045202,7]
[313308558,1707129053713,-750.23,0.00045202,7]
[313308559,1707129053722,-500.0,0.00045202,7]
[313308560,1707129053731,-582.25,0.00045202,7]
[313308561,1707129053741,-500.0,0.00045202,7]
[313308562,1707129053751,-1027.49,0.00045202,7]
[313308563,1707129053761,-500.0,0.00045202,7]
[313308564,1707129053771,-1824.84,0.00045202,5]
[313308565,1707129053780,-435.08869248,0.00045202,7]
[313308566,1707129054009,-207.29,0.0004191,5]
[313308567,1707129054019,-617.45785163,0.00041915,7]
[313308568,1707129054028,-608.95539273,0.00041915,7]
[313308569,1707129054038,-195.23,0.00042719,10]
[313308570,1707129054047,-64.91130752,0.00045202,7]
[313308571,1707129054057,-500.0,0.00045202,7]
[313308572,1707129054066,-500.0,0.00045202,7]
[313308573,1707129054076,-1225.73,0.00045202,7]
[313308574,1707129054085,-743.16,0.00045202,7]
[313308575,1707129054095,-500.0,0.00045202,7]
[313308576,1707129054104,-668.3,0.00045202,7]
[313308577,1707129054114,-968.55,0.00045202,7]
[313308578,1707129054123,-546.76961606,0.00045203,7]
[313308579,1707129054133,-330.13139626,0.00045203,7]
[313308580,1707129054142,-500.0,0.00045203,2]
[313308581,1707129054151,-500.0,0.00045203,7]
[313308582,1707129054161,-500.0,0.00045203,7]
[313308583,1707129054170,-500.0,0.00045203,7]
[313308584,1707129054179,-500.0,0.00045203,7]
[313308585,1707129054188,-500.0,0.00045203,7]
[313308586,1707129054197,-500.0,0.00045203,7]
[313308587,1707129054207,-385.5144358,0.00045203,7]
[313308588,1707129054220,-114.4855642,0.00045203,7]
[313308589,1707129054229,-500.0,0.00045203,7]
[313308590,1707129054239,-398.2944358,0.00045203,7]
[313308591,1707129054251,-101.7055642,0.00045203,7]
[313308592,1707129054261,-500.0,0.00045203,7]
[313308593,1707129054271,-500.0,0.00045203,7]
[313308594,1707129054428,-500.0,0.00045203,7]
[313308595,1707129054437,-500.0,0.00045203,7]
[313308596,1707129054446,-500.0,0.00045203,7]
[313308597,1707129054455,-500.0,0.00045203,7]
[313308598,1707129054465,-500.0,0.00045203,7]
[313308599,1707129054474,-500.0,0.00045203,7]
[313308600,1707129054483,-500.0,0.00045203,7]
[313308601,1707129054492,-500.0,0.00045203,7]
[313308602,1707129054501,-500.0,0.00045203,2]
[313308603,1707129054511,-591.54,0.00045203,7]
[313308604,1707129054521,-500.0,0.00045203,7]
[313308605,1707129054530,-500.0,0.00045203,7]
[313308606,1707129054539,-500.0,0.00045203,7]
[313308607,1707129054548,-500.0,0.00045203,7]
[313308608,1707129054558,-460.27303136,0.00045203,7]
[313308620,1707130232299,-155.0,0.00032196,2]
[313308621,1707130232309,-717.54482243,0.00032196,4]
[313308622,1707130232319,-29.63517757,0.00032197,10]
[313308623,1707130232405,-425.01017583,0.00032197,10]
[313308624,1707130232415,-327.79112996,0.00032206,7]
[313308625,1707130232425,-152.17140304,0.00034327,2]
[313308626,1707130232434,-150.0,0.00034425,3]
[313308627,1707130232443,-12259.62970973,0.00034426,30]
[313308628,1707130232453,-770.83783491,0.00034427,10]
[313308630,1707130232462,-1414.61982082,0.00034427,10]
[313308634,1707130232746,-1276.93434954,0.00034427,10]
[313308635,1707130232767,-150.0,0.00034548,10]
[313308636,1707130232787,-806.00552617,0.00035032,4]
[313308637,1707130232798,-152.17140298,0.00035186,2]
[313308638,1707130232807,-806.00552617,0.000356,4]
[313308639,1707130232816,-2597.0,0.000357,2]
[313308640,1707130232825,-18763.0,0.000357,2]
[313308641,1707130232835,-152.17140298,0.00036046,2]
[313308642,1707130232844,-168.83356651,0.00036948,7]
[313308643,1707130232853,-210.0,0.00037868,3]
[313308644,1707130232863,-300.0,0.00037911,2]
[313308645,1707130232872,-154.11,0.00038609,2]
[313308646,1707130232882,-180.0,0.00039097,2]
[313308647,1707130232891,-179.461,0.00039097,2]
[313308648,1707130232900,-163.535,0.00039097,2]
[313308649,1707130232910,-151.299,0.00039097,2]
[313308650,1707130232919,-150.524,0.00039097,2]
[313308651,1707130232928,-151.64,0.00039097,2]
[313308652,1707130232937,-150.196,0.00039097,2]
[313308653,1707130232946,-150.0,0.00040675,2]
[313308654,1707130232956,-600.0,0.00040701,2]
[313308655,1707130232966,-152.32,0.00040717,2]
[313308656,1707130232975,-250.0,0.00040742,2]
[313308657,1707130232984,-400.0,0.00041222,2]
[313308658,1707130232993,-1808.61,0.00041914,5]
[313308659,1707130233002,-500.0,0.00041914,7]
[313308660,1707130233011,-564.54,0.00041914,7]
[313308661,1707130233020,-500.0,0.00041914,7]
[313308662,1707130233029,-500.0,0.00041914,7]
[313308663,1707130233039,-500.0,0.00041914,7]
[313308664,1707130233048,-500.0,0.00041914,7]
[313308665,1707130233057,-151.27723435,0.00041914,7]
[313308666,1707130233066,-221.54561795,0.00041914,7]
[313308667,1707130233075,-500.0,0.00041914,7]
[313308668,1707130233085,-500.0,0.00041914,2]
[313308669,1707130233094,-500.0,0.00041914,7]
[313308670,1707130233104,-500.0,0.00041914,7]
[313308671,1707130233113,-559.7615887,0.00041914,7]
[313308672,1707130233122,-500.0,0.00041914,7]
[313308673,1707130233132,-500.0,0.00041914,7]
[313308674,1707130233141,-500.0,0.00041914,7]
[313308675,1707130233150,-500.0,0.00041914,7]
[313308676,1707130233159,-500.0,0.00041914,7]
[313308677,1707130233168,-500.0,0.00041914,7]
[313308678,1707130233178,-571.44,0.00041914,7]
[313308679,1707130233187,-500.0,0.00041914,7]
[313308680,1707130233196,-500.0,0.00041915,7]
[313308681,1707130233205,-500.0,0.00041915,7]
[313308682,1707130233214,-500.0,0.00041915,7]
[313308683,1707130233223,-500.0,0.00041915,7]
[313308684,1707130233233,-500.0,0.00041915,7]
[313308685,1707130233242,-250.0,0.00041915,7]
[313308686,1707130233251,-500.0,0.00041915,7]
[313308687,1707130233260,-503.54182589,0.00041915,7]
[313308688,1707130233269,-500.0,0.00041915,7]
[313308689,1707130233278,-500.0,0.00041915,7]
[313308690,1707130233288,-500.0,0.00041915,7]
[313308691,1707130233297,-500.0,0.00041915,7]
[313308692,1707130233306,-500.0,0.00041915,7]
[313308693,1707130233315,-547.24813602,0.00041915,7]
[313308694,1707130233324,-500.0,0.00041915,7]
[313308695,1707130233333,-500.0,0.00041915,7]
[313308696,1707130233342,-500.0,0.00041915,7]
[313308697,1707130233352,-733.02,0.00041915,7]
[313308698,1707130233362,-500.0,0.00041915,7]
[313308699,1707130233371,-931.89,0.00041915,7]
[313308700,1707130233381,-500.0,0.00041915,7]
[313308701,1707130233390,-179.52223137,0.00041915,7]
[313308702,1707130233399,-500.0,0.00041915,7]
[313308703,1707130233408,-533.44,0.00041915,7]
[313308704,1707130233417,-749.6,0.00041915,7]
[313308705,1707130233426,-698.22,0.00041915,7]
[313308706,1707130233435,-500.0,0.00041915,2]
[313308707,1707130233444,-500.0,0.00041915,7]
[313308708,1707130233453,-500.0,0.00041915,7]
[313308709,1707130233462,-500.0,0.00041915,7]
[313308710,1707130233472,-500.0,0.00041915,7]
[313308711,1707130233481,-500.0,0.00041915,2]
[313308712,1707130233490,-502.615,0.00041915,7]
[313308713,1707130233499,-361.08831332,0.00042,7]
[313308714,1707130233508,-365.0,0.0004209,2]
[313308715,1707130233517,-500.0,0.00042117,120]
[313308716,1707130233527,-2834.1328608,0.00042117,2]
[313308717,1707130233536,-191.2697,0.00042636,2]
[313308718,1707130233545,-1000.0,0.00042636,15]
[313308719,1707130233554,-500.0,0.00042636,2]
[313308720,1707130233563,-193.0,0.0004269,2]
[313308721,1707130233571,-500.0,0.00042728,7]
[313308722,1707130233580,-564.54,0.00042736,7]
[313308723,1707130233589,-500.0,0.00042736,7]
[313308724,1707130233598,-500.0,0.00042736,7]
[313308725,1707130233607,-500.0,0.00042736,7]
[313308726,1707130233616,-500.0,0.00042736,7]
[313308727,1707130233626,-500.0,0.00042736,2]
[313308728,1707130233635,-500.0,0.00042736,7]
[313308729,1707130233644,-500.0,0.00042736,7]
[313308730,1707130233653,-500.0,0.00042736,7]
[313308731,1707130233662,-500.0,0.00042736,7]
[313308732,1707130233671,-165.65764146,0.00042736,7]
[313308733,1707130233681,-500.0,0.00042736,7]
[313308734,1707130233690,-500.0,0.00042736,7]
[313308735,1707130233699,-500.0,0.00042736,7]
[313308736,1707130233708,-500.0,0.00042737,7]
[313308737,1707130233717,-250.0,0.00042737,7]
[313308738,1707130233727,-500.0,0.00042737,7]
[313308739,1707130233736,-500.0,0.00042737,7]
[313308740,1707130233746,-500.0,0.00042737,7]
[313308741,1707130233755,-500.0,0.00042737,7]
[313308742,1707130233764,-500.0,0.00042737,7]
[313308743,1707130233774,-500.0,0.00042737,7]
[313308744,1707130233783,-733.02,0.00042737,7]
[313308745,1707130233792,-500.0,0.00042737,7]
[313308746,1707130233802,-931.89,0.00042737,7]
[313308747,1707130233811,-500.0,0.00042737,7]
[313308748,1707130233820,-533.44,0.00042737,7]
[313308749,1707130233830,-749.6,0.00042737,7]
[313308750,1707130233839,-698.22,0.00042737,7]
[313308751,1707130233848,-500.0,0.00042737,2]
[313308752,1707130233857,-500.0,0.00042737,7]
[313308753,1707130233868,-500.0,0.00042737,7]
[313308754,1707130233879,-500.0,0.00042737,2]
[313308755,1707130233888,-162.69,0.0004338,10]
[313308756,1707130233897,-154.11,0.00043388,2]
[313308757,1707130233906,-1529.0,0.0004339,3]
[313308758,1707130233916,-813.48,0.00043445,10]
[313308759,1707130233925,-500.0,0.00043455,2]
[313308760,1707130233934,-5000.0,0.00043459,3]
[313308761,1707130233943,-377.0,0.0004349,2]
[313308762,1707130233953,-518.53568055,0.00043555,4]
[313308763,1707130233964,-152.39755484,0.00043556,7]
[313308764,1707130233973,-500.0,0.00043556,7]
[313308765,1707130233982,-500.0,0.00043556,7]
[313308766,1707130233991,-500.0,0.00043556,7]
[313308767,1707130234000,-440.04758112,0.00043556,2]
[313308768,1707130234009,-500.0,0.00043556,2]
[313308769,1707130234019,-500.0,0.00043556,7]
[313308770,1707130234028,-500.0,0.00043556,7]
[313308771,1707130234037,-617.93153182,0.00043556,7]
[313308772,1707130234046,-500.0,0.00043556,7]
[313308773,1707130234055,-500.0,0.00043556,7]
[313308774,1707130234064,-500.0,0.00043556,7]
[313308775,1707130234073,-500.0,0.00043556,7]
[313308776,1707130234082,-500.0,0.00043556,7]
[313308777,1707130234091,-500.0,0.00043556,7]
[313308778,1707130234101,-500.0,0.00043556,7]
[313308779,1707130234110,-500.0,0.00043556,7]
[313308780,1707130234119,-500.0,0.00043556,7]
[313308781,1707130234128,-500.0,0.00043556,7]
[313308782,1707130234137,-500.0,0.00043556,7]
[313308783,1707130234147,-500.0,0.00043556,7]
[313308784,1707130234156,-500.0,0.00043556,7]
[313308785,1707130234165,-500.0,0.00043556,7]
[313308786,1707130234174,-500.0,0.00043556,2]
[313308787,1707130234184,-500.0,0.00043556,7]
[313308788,1707130234193,-500.0,0.00043556,7]
[313308789,1707130234201,-500.0,0.00043556,7]
[313308790,1707130234210,-500.0,0.00043556,7]
[313308791,1707130234219,-500.0,0.00043556,7]
[313308792,1707130234228,-500.0,0.00043556,7]
[313308793,1707130234237,-500.0,0.00043556,7]
[313308794,1707130234246,-500.0,0.00043556,7]
[313308795,1707130234255,-593.59,0.00043556,7]
[313308796,1707130234264,-203.1276827,0.00043556,7]
[313308797,1707130234273,-207.92044689,0.00043556,7]
[313308798,1707130234282,-507.44796806,0.00043556,7]
[313308799,1707130234291,-718.9,0.00043556,7]
[313308800,1707130234300,-566.12,0.00043556,7]
[313308801,1707130234310,-593.33202766,0.00043556,7]
[313308802,1707130234319,-500.0,0.00043556,7]
[313308803,1707130234328,-500.0,0.00043556,7]
[313308804,1707130234337,-500.0,0.00043556,7]
[313308805,1707130234346,-500.0,0.00043556,7]
[313308806,1707130234355,-509.35,0.00043556,7]
[313308807,1707130234364,-500.0,0.00043556,7]
[313308808,1707130234373,-500.0,0.00043556,7]
[313308809,1707130234382,-1890.0,0.00043556,7]
[313308810,1707130234391,-1254.09,0.00043556,7]
[313308811,1707130234400,-715.3,0.00043556,7]
[313308812,1707130234409,-500.0,0.00043556,7]
[313308813,1707130234419,-500.0,0.00043556,7]
[313308814,1707130234428,-500.0,0.00043556,7]
[313308815,1707130234437,-858.48,0.00043556,7]
[313308816,1707130234446,-727.18,0.00043556,7]
[313308817,1707130234455,-500.0,0.00043556,7]
[313308818,1707130234464,-500.0,0.00043556,7]
[313308819,1707130234473,-386.28494137,0.00043556,7]
[313308820,1707130234483,-500.0,0.00043556,7]
[313308821,1707130234492,-500.0,0.00043556,7]
[313308822,1707130234501,-500.0,0.00043556,7]
[313308823,1707130234510,-500.0,0.00043556,7]
[313308824,1707130234520,-500.0,0.00043556,7]
[313308825,1707130234529,-500.0,0.00043556,7]
[313308826,1707130234538,-1626.67,0.00043556,7]
[313308827,1707130234547,-500.0,0.00043556,7]
[313308828,1707130234557,-500.0,0.00043556,7]
[313308829,1707130234566,-500.0,0.00043556,7]
[313308830,1707130234575,-500.0,0.00043556,7]
[313308831,1707130234585,-500.0,0.00043556,7]
[313308832,1707130234594,-500.0,0.00043556,7]
[313308833,1707130234605,-500.0,0.00043556,7]
[313308834,1707130234614,-766.7,0.00043556,7]
[313308835,1707130234625,-500.0,0.00043556,7]
[313308836,1707130234634,-500.0,0.00043556,7]
[313308837,1707130234643,-651.9,0.00043556,7]
[313308838,1707130234653,-500.0,0.00043556,7]
[313308839,1707130234663,-500.0,0.00043556,7]
[313308840,1707130234672,-500.0,0.00043556,7]
[313308841,1707130234682,-500.0,0.00043556,7]
[313308842,1707130234691,-500.0,0.00043556,7]
[313308843,1707130234701,-500.0,0.00043556,7]
[313308844,1707130234711,-6587.33,0.00043556,7]
[313308845,1707130234720,-252.31470807,0.00043556,7]
[313308846,1707130234729,-500.0,0.00043556,7]
[313308847,1707130234739,-500.0,0.00043556,7]
[313308848,1707130234748,-1493.24,0.00043556,7]
[313308849,1707130234758,-500.0,0.00043556,7]
[313308850,1707130234767,-500.0,0.00043556,7]
[313308851,1707130234776,-500.0,0.00043556,7]
[313308852,1707130234787,-500.0,0.00043556,7]
[313308853,1707130234796,-500.0,0.00043556,7]
[313308854,1707130234805,-500.0,0.00043556,7]
[313308855,1707130234815,-551.7,0.00043556,7]
[313308856,1707130234824,-500.0,0.00043556,7]
[313308857,1707130234834,-500.0,0.00043556,7]
[313308858,1707130234843,-500.0,0.00043556,7]
[313308859,1707130234852,-500.0,0.00043556,7]
[313308860,1707130234861,-555.19,0.00043556,7]
[313308861,1707130234873,-500.0,0.00043556,7]
[313308862,1707130234882,-1338.63,0.00043556,5]
[313308863,1707130234891,-500.0,0.00043556,7]
[313308864,1707130234900,-500.0,0.00043556,7]
[313308865,1707130234909,-551.62,0.00043556,7]
[313308866,1707130234919,-500.0,0.00043556,7]
[313308867,1707130234928,-1444.67,0.00043556,5]
[313308868,1707130234937,-500.0,0.00043556,7]
[313308869,1707130234946,-500.0,0.00043556,7]
[313308870,1707130234956,-500.0,0.00043556,7]
[313308871,1707130234965,-500.0,0.00043556,7]
[313308872,1707130234974,-500.0,0.00043556,7]
[313308873,1707130234984,-1004.57,0.00043556,7]
[313308874,1707130234993,-500.0,0.00043556,7]
[313308875,1707130235002,-1019.61,0.00043556,7]
[313308876,1707130235011,-500.0,0.00043556,7]
[313308877,1707130235020,-806.42,0.00043556,7]
[313308878,1707130235030,-500.0,0.00043556,7]
[313308879,1707130235039,-506.52,0.00043556,7]
[313308880,1707130235049,-500.0,0.00043556,7]
[313308881,1707130235058,-500.0,0.00043556,7]
[313308882,1707130235068,-500.0,0.00043556,7]
[313308883,1707130235077,-500.0,0.00043556,7]
[313308884,1707130235087,-714.36,0.00043556,7]
[313308885,1707130235096,-4226.01,0.00043556,7]
[313308886,1707130235106,-500.0,0.00043557,7]
[313308887,1707130235115,-175.13029311,0.00043557,7]
[313308888,1707130235124,-500.0,0.00043557,7]
[313308889,1707130235134,-528.07899787,0.00043557,7]
[313308890,1707130235143,-578.61523803,0.00043557,7]
[313308891,1707130235152,-337.24959685,0.00043557,7]
[313308892,1707130235162,-500.0,0.00043557,7]
[313308893,1707130235171,-540.46706986,0.00043557,7]
[313308894,1707130235181,-500.0,0.00043557,30]
[313308895,1707130235190,-544.16880077,0.00043557,7]
[313308896,1707130235200,-567.5706978,0.00043557,7]
[313308897,1707130235209,-547.60960597,0.00043557,7]
[313308898,1707130235219,-239.51421717,0.00043557,7]
[313308899,1707130235228,-505.08098615,0.00043557,7]
[313308900,1707130235237,-516.65047293,0.00043557,7]
[313308901,1707130235246,-500.0,0.00043557,7]
[313308902,1707130235256,-481.29229897,0.00043557,7]
[313308903,1707130235265,-531.6520671,0.00043557,7]
[313308904,1707130235274,-500.0,0.00043557,7]
[313308905,1707130235283,-500.0,0.00043557,7]
[313308906,1707130235293,-1264.98,0.00043557,7]
[313308907,1707130235302,-585.9257816,0.00043557,7]
[313308908,1707130235311,-3291.52,0.00043557,7]
[313308909,1707130235321,-590.25719107,0.00043557,7]
[313308910,1707130235330,-500.0,0.00043557,7]
[313308911,1707130235339,-500.0,0.00043557,7]
[313308912,1707130235348,-509.02,0.00043557,7]
[313308913,1707130235358,-582.62,0.00043557,7]
[313308914,1707130235367,-500.0,0.00043557,7]
[313308915,1707130235376,-500.0,0.00043557,7]
[313308916,1707130235386,-500.0,0.00043557,7]
[313308917,1707130235395,-500.0,0.00043557,7]
[313308918,1707130235405,-903.0,0.00043557,7]
[313308919,1707130235414,-500.3384201,0.00043557,7]
[313308920,1707130235423,-500.0,0.00043557,7]
[313308921,1707130235433,-500.0,0.00043557,7]
[313308922,1707130235443,-500.0,0.00043557,7]
[313308923,1707130235452,-500.0,0.00043557,7]
[313308924,1707130235461,-500.0,0.00043557,20]
[313308925,1707130235470,-1670.88,0.00043557,7]
[313308926,1707130235479,-500.0,0.00043557,7]
[313308927,1707130235488,-500.0,0.00043557,7]